Workbook

Sheet CARD 7 RIO PET
BT1: TOTAL DE PEDIDOS
F2: ELISABETH ROCHA MIRANDA | G2: Noemia | H2: Nome teste | I2: teste | J2: TIA CLARINHA | K2: ef | L2: Nome teste | M2: Nome teste 2 | N2: ISABELA SA FREIRE | O2: Fulano | P2: MARA LUISA VANIA | Q2: Citrano | R2: CLAUDIA GUERRA | S2: Beltrano | T2: RAQUEL CARIUS | V2: PATTYMELT | X2: VERA ALTO DA SERRA | Z2: RENNE SVACINA | AB2: JOSE CARLOS E LEILA | AD2: VALÉRIA TONELERO | AF2: GRAÇA PQ SAO VICENTE | AH2: BETH ROMULO | AJ2: GLORINHA | AL2: ALICE ARARAS | AN2: ANA LUCIA DUDA | AP2: IVAN CLIENTE | AR2: MARGARIDA | AT2: VERA LEME | AV2: MARIANA LIMA INGELHEIM | BM2: Citrano | BN2: Fulano de Tal | BP2: ELISABETH ROCHA MIRANDA
B3: TOTAL A PAGAR | C3: =C38 -> 0 | D3: 0 | F3: 540 | G3: 0 | H3: 321 | I3: 0 | J3: 225 | K3: 0 | L3: 305 | M3: 4 | N3: 265 | O3: 0 | P3: 215 | Q3: 0 | R3: 403 | S3: 0 | T3: 160 | U3: 0 | V3: 165 | W3: 0 | X3: 268 | Y3: 0 | Z3: 125 | AA3: 0 | AB3: 405 | AC3: 0 | AD3: 175 | AE3: 0 | AF3: 175 | AG3: 0 | AH3: 273 | AI3: 0 | AJ3: 165 | AK3: 0 | AL3: 155 | AM3: 0 | AN3: 335 | AO3: 0 | AP3: 303 | AQ3: 0 | AR3: 193 | AS3: 0 | AT3: 255 | AU3: 0 | AV3: 125 | AW3: 0 | AX3: 0 | AY3: 0 | AZ3: 0 | BA3: 0 | BB3: 0 | BC3: 0 | BD3: 0 | BE3: 0 | BF3: 0 | BG3: 0 | BH3: 0 | BI3: 0 | BJ3: 0 | BK3: 0 | BL3: 0 | BM3: 100 | BN3: 250
B4: ID CLIENTE | E4: 1.333333333 | F4: 1 | G4: 2 | H4: 3 | I4: 4 | J4: 5 | K4: 6 | L4: 7 | M4: 8 | N4: 9 | O4: 10 | P4: 11 | Q4: 12 | R4: 13 | S4: 14 | T4: 15 | U4: 16 | V4: 17 | W4: 18 | X4: 19 | Y4: 20 | Z4: 21 | AA4: 22 | AB4: 23 | AC4: 24 | AD4: 25 | AE4: 26 | AF4: 27 | AG4: 28 | AH4: 29 | AI4: 30 | AJ4: 31 | AK4: 32 | AL4: 33 | AM4: 34 | AN4: 35 | AO4: 36 | AP4: 37 | AQ4: 38 | AR4: 39 | AS4: 40 | AT4: 41 | AU4: 42 | AV4: 43 | AW4: 44 | AX4: 45 | AY4: 46 | AZ4: 47 | BA4: 48 | BB4: 49 | BC4: 50 | BD4: 51 | BE4: 52 | BF4: 53 | BG4: 54 | BH4: 55 | BI4: 56 | BJ4: 57 | BK4: 58 | BL4: 59 | BM4: 60 | BN4: 61 | BO4: 62 | BP4: 63
A5: 66 | B5: STATUS PAGAMENTO | G5: ok | I5: ok | J5: - | K5: ok | O5: ok | S5: ok | W5: ok | Y5: ok | AJ5: falta 40 | AN5: cartao
B6: Bairro | F6: Valença | G6: Bairro teste | H6: Angra dos Reis | I6: Aperibé | J6: Araruama | K6: Areal | L6: Armação dos Búzios | M6: Arraial do Cabo | N6: Barra do Piraí | O6: Barra Mansa | P6: Belford Roxo | Q6: Bom Jardim | R6: Bom Jesus do Itabapoana | S6: Cabo Frio | T6: cachoeiras de macacu | V6: Cambuci | W6: Carapebus | X6: Comendador Levy Gasparian | Y6: Campos dos Goytacazes | Z6: Cantagalo | AA6: Cardoso Moreira | AB6: Carmo | AC6: Casimiro de Abreu | AD6: Conceição de Macabu | AE6: Cordeiro | AF6: Duas Barras | AG6: Duque de Caxias | AH6: Engenheiro Paulo de Frontin | AI6: Guapimirim | AJ6: Iguaba Grande | AK6: Itaboraí | AL6: Itaguaí | AM6: Italva | AN6: Itaocara | AO6: Itaperuna | AP6: Itatiaia | AQ6: Japeri | AR6: Laje do Muriaé | AS6: Macaé | AT6: Macuco | AU6: Magé | AV6: Mangaratiba | AW6: Maricá | BM6: Bairro X | BN6: Bairro Y | BP6: Valença | BT6: Piraí | BU6: Porciúncula | BV6: Porto Real | BW6: Quatis | BX6: Queimados | BY6: Quissamã | BZ6: Resende | CA6: Rio Bonito | CB6: Rio Claro | CC6: Rio das Flores | CD6: Rio das Ostras | CE6: Rio de Janeiro | CF6: Santa Maria Madalena | CG6: Santo Antônio de Pádua | CH6: São Francisco de Itabapoana | CI6: São Fidélis
B7: ENDEREÇO | F7: Rua Gilberto Amado 370 apto 101 cep 22620-062 Jardim Oceânico Barra da Tijuca | G7: Rua teste | H7: Av. Lineu de Paula Machado, # 1006/ apto 901/bloco 1 | I7: teste | J7: Rua General Garzon 100/604 | K7: fefe | L7: BUSCA NO LOCAL | M7: Endereço teste | N7: Rua Professor Stroeller 320, Quarteirão Brasileiro | O7: Endereço X | P7: Av. Jornalista Tim Lopes 255 bloco 8 apto 312 | Q7: Endereço Y | R7: AV HENRIQUE DODSWORTH 64/206 BL1 | S7: Endereço Z | T7: Praça Rui Barbosa, 250 apto:402 | V7: Rua das dracenas 8, vale dos esquilos | X7: Rua Lopes Trovão, 320 - Alto da Serra. | Z7: Rua da Imperatriz 65/602 | AB7: Rua Comandante Marcolino de Souza 443 apt 104 Bloco 3 Condomínio Albergo Dei Pini Fica ao lado do Hotel Albergo Del Leone | AD7: Rua Tonelero 130/503 | AF7: RUA PAULA BUARQUE 1100 | AH7: Avenida Borges de Medeiros, 137/401 | AJ7: Rua Zoila de Abreu Teixeira ( primeira rua depois do Cond Nova Ipanema ) edifício Kossen bloco 2 J cobertura 303 | AL7: Condomínio Vale das Araras | AN7: ok | AP7: Rua Zaco Paraná, 10 cobertura 301 Jd Oceanico | AR7: Rua Casuarina 81 apto 202 | AT7: Gustavo Sampaio 441, 302 | AV7: Rua Carlota Corrêa Lima, 1500 lote 01 | BM7: Rua x, Número x | BN7: Rua Y, Número y | BP7: Rua Gilberto Amado 370 apto 101 cep 22620-062 Jardim Oceânico Barra da Tijuca | BU7: TOTAL DE PEDIDOS | BW7: ESTOQUE | BX7: SALDO | CH7: /
B8: TELEFONE | L8: $ na entrega | R8: CORTE CANTAGALO | T8: $ na portaria | V8: f | AL8: Estrada das Perobas 2000, Casa 18 - Araras | AV8: Condominio Bosque do Ingelhein | CD8: =0.3*20 -> 6
D9: =#REF!*$C9 ->  | E9: =F9*$C9 -> 0 | G9: =H9*$C9 -> 0 | I9: =J9*$C9 -> 0 | K9: =L9*$C9 -> 0 | M9: =N9*$C9 -> 0 | O9: =P9*$C9 -> 0 | Q9: =R9*$C9 -> 0 | S9: =T9*$C9 -> 0 | U9: =V9*$C9 -> 0 | W9: =X9*$C9 -> 0 | Y9: =Z9*$C9 -> 0 | AA9: =AB9*$C9 -> 0 | AC9: =AD9*$C9 -> 0 | AE9: =AF9*$C9 -> 0 | AG9: =AH9*$C9 -> 0 | AI9: =AJ9*$C9 -> 0 | AK9: =AL9*$C9 -> 0 | AM9: =AN9*$C9 -> 0 | AO9: =AP9*$C9 -> 0 | AQ9: =AR9*$C9 -> 0 | AS9: =AT9*$C9 -> 0 | AU9: =AV9*$C9 -> 0 | AW9: =AX9*$C9 -> 0 | AY9: =AZ9*$C9 -> 0 | BA9: =BB9*$C9 -> 0 | BC9: =BD9*$C9 -> 0 | BE9: =BF9*$C9 -> 0 | BG9: =BH9*$C9 -> 0 | BI9: =BJ9*$C9 -> 0 | BK9: =BL9*$C9 -> 0 | BU9: =SUM(F9+H9+J9+L9+N9+P9+R9+T9+V9+X9+Z9+AB9+AD9+AF9+AH9+AJ9+AL9+AN9+AP9+AR9+AT9+AV9+AX9+AZ9+BB9+BD9+BF9+BH9+BJ9+BL9) -> 0 | BV9: =B9 -> 0 | BX9: =BW9-BU9 -> 0
B10: Ratatouille | C10: 50 | E10: 0 | G10: 0 | I10: 0 | K10: 50 | L10: 1 | M10: 0 | O10: 50 | P10: 1 | Q10: 0 | S10: 0 | U10: 0 | W10: 0 | Y10: 0 | AA10: 0 | AC10: 0 | AE10: 0 | AG10: 0 | AI10: 0 | AK10: 0 | AM10: 0 | AO10: 0 | AQ10: 0 | AS10: 0 | AU10: 0 | AW10: 0 | AY10: 0 | BA10: 0 | BC10: 0 | BE10: 0 | BG10: 0 | BI10: 0 | BK10: 0 | BM10: 1 | BU10: 2 | BV10: Ratatouille | BX10: -2
B11: Batatas Coradas | E11: 0 | G11: 0 | I11: 0 | K11: 0 | M11: 0 | O11: 0 | Q11: 0 | S11: 0 | U11: 0 | W11: 0 | Y11: 0 | AA11: 0 | AC11: 0 | AE11: 0 | AG11: 0 | AI11: 0 | AK11: 0 | AM11: 0 | AO11: 0 | AQ11: 0 | AS11: 0 | AU11: 0 | AW11: 0 | AY11: 0 | BA11: 0 | BC11: 0 | BE11: 0 | BG11: 0 | BI11: 0 | BK11: 0 | BU11: 0 | BV11: Batatas Coradas | BX11: 0 | CH11: -+9-+*95
B12: Pate de Figado 250g | C12: 30 | E12: 0 | G12: 0 | I12: 0 | K12: 0 | M12: 0 | O12: 0 | Q12: 0 | S12: 0 | U12: 0 | W12: 0 | Y12: 0 | AA12: 0 | AC12: 0 | AE12: 0 | AG12: 0 | AI12: 0 | AK12: 0 | AM12: 30 | AN12: 1 | AO12: 0 | AQ12: 0 | AS12: 30 | AT12: 1 | AU12: 0 | AW12: 0 | AY12: 0 | BA12: 0 | BC12: 0 | BE12: 0 | BG12: 0 | BI12: 0 | BK12: 0 | BU12: 2 | BV12: Pate de Figado 250g | BX12: -2
B13: Bolinho de Bacalhau | C13: 50 | E13: 0 | I13: 0 | K13: 0 | M13: 0 | O13: 0 | Q13: 50 | R13: 1 | S13: 0 | U13: 0 | W13: 0 | Y13: 0 | AA13: 0 | AC13: 0 | AE13: 0 | AG13: 0 | AI13: 0 | AK13: 0 | AM13: 0 | AO13: 0 | AQ13: 0 | AS13: 0 | AU13: 0 | AW13: 0 | AY13: 0 | BA13: 0 | BC13: 0 | BE13: 0 | BG13: 0 | BI13: 0 | BK13: 0 | BU13: 1 | BV13: Bolinho de Bacalhau | BX13: -1 | CH13: */87\4\?"+
B14: Croquete de Joelho | C14: 48 | E14: 0 | I14: 0 | K14: 0 | M14: 0 | O14: 0 | Q14: 0 | S14: 0 | U14: 0 | W14: 0 | Y14: 0 | AA14: 0 | AC14: 0 | AE14: 0 | AG14: 48 | AH14: 1 | AI14: 0 | AK14: 0 | AM14: 0 | AO14: 48 | AP14: 1 | AQ14: 0 | AS14: 0 | AU14: 0 | AW14: 0 | AY14: 0 | BA14: 0 | BC14: 0 | BE14: 0 | BG14: 0 | BI14: 0 | BK14: 0 | BU14: 2 | BV14: Croquete de Joelho | BX14: -2
B15: Croquete de Cordeiro | C15: 52 | E15: 0 | I15: 0 | K15: 0 | M15: 0 | O15: 0 | Q15: 0 | S15: 0 | U15: 0 | W15: 0 | Y15: 52 | Z15: 1 | AA15: 0 | AC15: 0 | AE15: 0 | AG15: 0 | AI15: 0 | AK15: 0 | AM15: 0 | AO15: 0 | AQ15: 0 | AS15: 0 | AU15: 0 | AW15: 0 | AY15: 0 | BA15: 0 | BC15: 0 | BE15: 0 | BG15: 0 | BI15: 0 | BK15: 0 | BU15: 1 | BV15: Croquete de Cordeiro | BX15: -1
B16: Croquete de Pato | C16: 58 | E16: 0 | I16: 0 | K16: 0 | M16: 0 | O16: 0 | Q16: 0 | S16: 0 | U16: 0 | W16: 0 | Y16: 58 | Z16: 1 | AA16: 0 | AC16: 0 | AE16: 0 | AG16: 0 | AI16: 0 | AK16: 0 | AM16: 0 | AO16: 0 | AQ16: 58 | AR16: 1 | AS16: 0 | AU16: 0 | AW16: 0 | AY16: 0 | BA16: 0 | BC16: 0 | BE16: 0 | BG16: 0 | BI16: 0 | BK16: 0 | BU16: 2 | BV16: Croquete de Pato | BX16: -2
B17: Berinjela Parmigiana | C17: 100 | E17: 0 | I17: 0 | K17: 0 | M17: 0 | O17: 0 | Q17: 0 | S17: 0 | U17: 0 | W17: 0 | Y17: 0 | AA17: 0 | AC17: 0 | AE17: 0 | AG17: 0 | AI17: 0 | AK17: 0 | AM17: 0 | AO17: 0 | AQ17: 0 | AS17: 0 | AU17: 0 | AW17: 0 | AY17: 0 | BA17: 0 | BC17: 0 | BE17: 0 | BG17: 0 | BI17: 0 | BK17: 0 | BU17: 0 | BV17: Berinjela Parmigiana | BX17: 0
B18: Frango Parmigiana | C18: 100 | D18: =#REF!*$C18 ->  | E18: 0 | I18: 0 | K18: 0 | M18: 100 | N18: 1 | O18: 0 | Q18: 0 | S18: 0 | U18: 0 | W18: 0 | Y18: 0 | AA18: 0 | AC18: 0 | AE18: 0 | AG18: 0 | AI18: 0 | AK18: 0 | AM18: 0 | AO18: 0 | AQ18: 0 | AS18: 0 | AU18: 0 | AW18: 0 | AY18: 0 | BA18: 0 | BC18: 0 | BE18: 0 | BG18: 0 | BI18: 0 | BK18: 0 | BU18: 1 | BV18: Frango Parmigiana | BX18: -1
B19: Lasagna Bologneses | C19: 110 | E19: 0 | I19: 0 | K19: 0 | M19: 110 | N19: 1 | O19: 0 | Q19: 0 | S19: 0 | U19: 0 | W19: 0 | Y19: 0 | AA19: 0 | AC19: 0 | AE19: 0 | AG19: 0 | AI19: 0 | AK19: 0 | AM19: 0 | AO19: 110 | AP19: 1 | AQ19: 0 | AS19: 0 | AU19: 0 | AW19: 0 | AY19: 0 | BA19: 0 | BC19: 0 | BE19: 0 | BG19: 0 | BI19: 0 | BK19: 0 | BU19: 2 | BV19: Lasagna Bologneses | BX19: -2
B20: Gnocchi de Batata | C20: 65 | E20: 0 | H20: 6 | I20: 0 | K20: 0 | M20: 0 | O20: 0 | Q20: 0 | S20: 0 | U20: 0 | W20: 0 | Y20: 0 | AA20: 0 | AC20: 0 | AE20: 0 | AG20: 0 | AI20: 0 | AK20: 0 | AM20: 0 | AO20: 0 | AQ20: 0 | AS20: 0 | AU20: 0 | AW20: 0 | AY20: 0 | BA20: 0 | BC20: 0 | BE20: 0 | BG20: 0 | BI20: 0 | BK20: 0 | BM20: 2 | BU20: 6 | BV20: Gnocchi de Batata | BX20: -6
B21: Rosbife Mostarda | C21: 140 | E21: 0 | I21: 0 | K21: 0 | M21: 0 | O21: 140 | P21: 1 | Q21: 0 | S21: 0 | U21: 0 | W21: 0 | Y21: 0 | AA21: 0 | AC21: 0 | AE21: 0 | AG21: 0 | AI21: 0 | AK21: 0 | AM21: 0 | AO21: 0 | AQ21: 0 | AS21: 0 | AU21: 0 | AW21: 0 | AY21: 0 | BA21: 0 | BC21: 0 | BE21: 0 | BG21: 0 | BI21: 0 | BK21: 0 | BU21: 1 | BV21: Rosbife Mostarda | BX21: -1
B22: Pesto | C22: 65 | E22: 0 | I22: 0 | K22: 0 | M22: 0 | O22: 0 | Q22: 0 | S22: 0 | U22: 0 | W22: 65 | X22: 1 | Y22: 0 | AA22: 0 | AC22: 0 | AE22: 0 | AG22: 0 | AI22: 0 | AK22: 0 | AM22: 0 | AO22: 0 | AQ22: 0 | AS22: 0 | AU22: 0 | AW22: 0 | AY22: 0 | BA22: 0 | BC22: 0 | BE22: 0 | BG22: 0 | BI22: 0 | BK22: 0 | BU22: 1 | BV22: Pesto | BX22: -1
B23: Pomodoro | C23: 45 | E23: 225 | F23: 5 | I23: =J23*$C23 -> 0 | K23: 45 | L23: 1 | M23: 0 | O23: 0 | Q23: 0 | S23: 0 | U23: 0 | W23: 0 | Y23: 0 | AA23: 0 | AC23: 0 | AE23: 0 | AG23: 0 | AI23: 0 | AK23: 0 | AM23: 0 | AO23: 0 | AQ23: 0 | AS23: 0 | AU23: 0 | AW23: 0 | AY23: 0 | BA23: 0 | BC23: 0 | BE23: 0 | BG23: 0 | BI23: 0 | BK23: 0 | BU23: 6 | BV23: Pomodoro | BX23: -6
B24: Ragu Calabrese | C24: 55 | E24: 0 | I24: 0 | K24: 0 | M24: 0 | O24: 0 | Q24: 0 | S24: 0 | U24: 0 | W24: 0 | Y24: 0 | AA24: 0 | AC24: 0 | AE24: 0 | AG24: 0 | AI24: 0 | AK24: 0 | AM24: 0 | AO24: 0 | AQ24: 0 | AS24: 0 | AU24: 0 | AW24: 0 | AY24: 0 | BA24: 0 | BC24: 0 | BE24: 0 | BG24: 0 | BI24: 0 | BK24: 0 | BP24: 6 | BU24: 0 | BV24: Ragu Calabrese | BX24: 0
B25: Funghi | C25: 70 | E25: 0 | I25: 0 | K25: 0 | M25: 0 | O25: 0 | Q25: =R25*$C25 -> 70 | R25: 1 | S25: 0 | U25: 0 | W25: 0 | Y25: 0 | AA25: 0 | AC25: 0 | AE25: 0 | AG25: 0 | AI25: 0 | AK25: 0 | AM25: 0 | AO25: 0 | AQ25: 0 | AS25: 0 | AU25: 0 | AW25: 0 | AY25: 0 | BA25: 0 | BC25: 0 | BE25: 0 | BG25: 0 | BI25: 0 | BK25: 0 | BU25: 1 | BV25: Funghi | BX25: -1
B26: Casquinha de Caranguejo | C26: 90 | E26: 0 | I26: 90 | J26: 1 | K26: 0 | M26: 0 | O26: 0 | Q26: 0 | S26: 0 | U26: 0 | W26: 0 | Y26: 0 | AA26: 90 | AB26: 1 | AC26: 0 | AE26: 0 | AG26: 0 | AI26: 0 | AK26: 90 | AL26: 1 | AM26: 90 | AN26: 1 | AO26: 0 | AQ26: 0 | AS26: 90 | AT26: 1 | AU26: 0 | AW26: 0 | AY26: 0 | BA26: 0 | BC26: 0 | BE26: 0 | BG26: 0 | BI26: 0 | BK26: 0 | BU26: 5 | BV26: Casquinha de Caranguejo | BX26: -5 | CE26: TOTAL
B27: Caldo de Sururu | C27: 70 | E27: 70 | F27: 1 | I27: 0 | K27: 0 | M27: 0 | O27: 0 | Q27: 0 | S27: 0 | U27: 0 | W27: 0 | Y27: 0 | AA27: 70 | AB27: 1 | AC27: 70 | AD27: 1 | AE27: 0 | AG27: 0 | AI27: 0 | AK27: 0 | AM27: 70 | AN27: 1 | AO27: 0 | AQ27: 0 | AS27: 0 | AU27: 0 | AW27: 0 | AY27: 0 | BA27: 0 | BC27: 0 | BE27: 0 | BG27: 0 | BI27: 0 | BK27: 0 | BU27: 4 | BV27: Caldo de Sururu | BX27: -4 | CE27: =CD27*CC27+CD27*CB27+CD27*CA27 -> 0
B28: Caldo de Piranha | C28: 80 | E28: 80 | F28: 1 | I28: 0 | K28: 0 | M28: 0 | O28: 0 | Q28: 0 | S28: 0 | U28: 0 | W28: 0 | Y28: 0 | AA28: 80 | AB28: 1 | AC28: 80 | AD28: 1 | AE28: 0 | AG28: 0 | AI28: 0 | AK28: 0 | AM28: 80 | AN28: 1 | AO28: 0 | AQ28: 0 | AS28: 0 | AU28: 0 | AW28: 0 | AY28: 0 | BA28: 0 | BC28: 0 | BE28: 0 | BG28: 0 | BI28: 0 | BK28: 0 | BM28: 3 | BU28: 4 | BV28: Caldo de Piranha | BX28: -4
B29: CrOquete de Vatapa | C29: 40 | E29: 0 | I29: 0 | K29: 0 | M29: 0 | O29: 0 | Q29: 0 | S29: 0 | U29: 0 | W29: 0 | Y29: 0 | AA29: 0 | AC29: 0 | AE29: 40 | AF29: 1 | AG29: 0 | AI29: 0 | AK29: 40 | AL29: 1 | AM29: 40 | AN29: 1 | AO29: 0 | AQ29: 0 | AS29: 0 | AU29: 0 | AW29: 0 | AY29: 0 | BA29: 0 | BC29: 0 | BE29: 0 | BG29: 0 | BI29: 0 | BK29: 0 | BU29: 3 | BV29: CrOquete de Vatapa | BX29: -3
B30: Moqueca de Namorado | C30: 140 | E30: 140 | F30: 1 | I30: 0 | K30: 0 | M30: 0 | O30: 0 | Q30: 0 | S30: 140 | T30: 1 | U30: 140 | V30: 1 | W30: 140 | X30: 1 | Y30: 0 | AA30: 140 | AB30: 1 | AC30: 0 | AE30: 0 | AG30: 0 | AI30: 140 | AJ30: 1 | AK30: 0 | AM30: 0 | AO30: 0 | AQ30: 0 | AS30: 0 | AU30: 0 | AW30: 0 | AY30: 0 | BA30: 0 | BC30: 0 | BE30: 0 | BG30: 0 | BI30: 0 | BK30: 0 | BU30: 6 | BV30: Moqueca de Namorado | BX30: -6
B31: Carne Assada com Gnocch | C31: 110 | E31: 0 | G31: 0 | I31: 110 | J31: 1 | K31: 110 | L31: 1 | M31: 0 | O31: 0 | Q31: =R31*$C31 -> 220 | R31: 2 | S31: 0 | U31: 0 | W31: 0 | Y31: 0 | AA31: 0 | AC31: 0 | AE31: 110 | AF31: 1 | AG31: 0 | AI31: 0 | AK31: 0 | AM31: 0 | AO31: 0 | AQ31: 110 | AR31: 1 | AS31: 110 | AT31: 1 | AU31: 0 | AW31: 0 | AY31: 0 | BA31: 0 | BC31: 0 | BE31: 0 | BG31: 0 | BI31: 0 | BK31: 0 | BU31: 7 | BV31: Carne Assada com Gnocch | BX31: -7
B32: Carne Seca com Abobora | C32: 120 | E32: 0 | G32: 120 | H32: 1 | I32: 0 | K32: 0 | M32: 0 | O32: 0 | Q32: 0 | S32: 0 | U32: 0 | W32: 0 | Y32: 0 | AA32: 0 | AC32: 0 | AE32: 0 | AG32: 0 | AI32: 0 | AK32: 0 | AM32: 0 | AO32: 120 | AP32: 1 | AQ32: 0 | AS32: 0 | AU32: 0 | AW32: 0 | AY32: 0 | BA32: 0 | BC32: 0 | BE32: 0 | BG32: 0 | BI32: 0 | BK32: 0 | BU32: 2 | BV32: Carne Seca com Abobora | BX32: -2
B33: Galinhada | C33: 100 | E33: 0 | G33: 100 | H33: 1 | I33: 0 | K33: 100 | L33: 1 | M33: 0 | O33: 0 | Q33: 0 | S33: 0 | U33: 0 | W33: 0 | Y33: 0 | AA33: 0 | AC33: 0 | AE33: 0 | AG33: 200 | AH33: 2 | AI33: 0 | AK33: 0 | AM33: 0 | AO33: 0 | AQ33: 0 | AS33: 0 | AU33: 100 | AV33: 1 | AW33: 0 | AY33: 0 | BA33: 0 | BC33: 0 | BE33: 0 | BG33: 0 | BI33: 0 | BK33: 0 | BU33: 5 | BV33: Galinhada | BX33: -5
B34: Doce de Abobora | C34: 30 | E34: 0 | G34: 0 | I34: 0 | K34: 0 | M34: 30 | N34: 1 | O34: 0 | Q34: 0 | S34: 0 | U34: 0 | W34: 0 | Y34: 0 | AA34: 0 | AC34: 0 | AE34: 0 | AG34: 0 | AI34: 0 | AK34: 0 | AM34: 0 | AO34: 0 | AQ34: 0 | AS34: 0 | AU34: 0 | AW34: 0 | AY34: 0 | BA34: 0 | BC34: 0 | BE34: 0 | BG34: 0 | BI34: 0 | BK34: 0 | BU34: 1 | BV34: Doce de Abobora | BX34: -1
B35: Cocada | C35: 38 | E35: 0 | G35: 76 | H35: 2 | I35: 0 | K35: 0 | M35: 0 | O35: 0 | Q35: 38 | R35: 1 | S35: 0 | U35: 0 | W35: 38 | X35: 1 | Y35: 0 | AA35: 0 | AC35: 0 | AE35: 0 | AG35: 0 | AI35: 0 | AK35: 0 | AM35: 0 | AO35: 0 | AQ35: 0 | AS35: 0 | AU35: 0 | AW35: 0 | AY35: 0 | BA35: 0 | BC35: 0 | BE35: 0 | BG35: 0 | BI35: 0 | BK35: 0 | BM35: 1 | BU35: 4 | BV35: Cocada | BX35: -4
E36: 0 | G36: 0 | I36: 0 | K36: 0 | M36: 0 | O36: 0 | Q36: 0 | S36: 0 | U36: 0 | W36: 0 | Y36: 0 | AA36: 0 | AC36: 0 | AE36: 0 | AG36: 0 | AI36: 0 | AK36: 0 | AM36: 0 | AO36: 0 | AQ36: 0 | AS36: 0 | AU36: 0 | AW36: 0 | AY36: 0 | BA36: 0 | BC36: 0 | BE36: 0 | BG36: 0 | BI36: 0 | BK36: 0 | BU36: 0 | BV36: 0 | BX36: 0
B37: TAXA DE ENTREGA | C37: 25 | E37: 25 | F37: 1 | G37: 25 | H37: 1 | I37: 25 | J37: 1 | K37: 0 | L37: 0 | M37: 25 | N37: 1 | O37: 25 | P37: 1 | Q37: 25 | R37: 1 | S37: 20 | T37: 0.8 | U37: 25 | V37: 1 | W37: 25 | X37: 1 | Y37: 15 | Z37: 0.6 | AA37: 25 | AB37: 1 | AC37: 25 | AD37: 1 | AE37: 25 | AF37: 1 | AG37: 25 | AH37: 1 | AI37: 25 | AJ37: 1 | AK37: 25 | AL37: 1 | AM37: 25 | AN37: 1 | AO37: 25 | AP37: 1 | AQ37: 25 | AR37: 1 | AS37: 25 | AT37: 1 | AU37: 25 | AV37: 1 | AW37: 0 | AX37: 0 | AY37: 0 | AZ37: 0 | BA37: 0 | BB37: 0 | BC37: 0 | BD37: 0 | BE37: 0 | BF37: 0 | BG37: 0 | BH37: 0 | BI37: 0 | BJ37: 0 | BK37: 0 | BL37: 0 | BU37: 20.4 | BV37: TAXA DE ENTREGA | BX37: -20.4
B38: TOTAL VALOR | E38: =SUM(#REF!) ->  | F38: =SUM(E9:E37) -> 540 | H38: =SUM(G9:G37) -> 321 | J38: =SUM(I9:I37) -> 225 | L38: =SUM(K9:K37) -> 305 | M38: 4 | N38: 265 | P38: =SUM(O9:O37) -> 215 | R38: =SUM(Q9:Q37) -> 403 | T38: =SUM(S9:S37) -> 160 | V38: =SUM(U9:U37) -> 165 | X38: =SUM(W9:W37) -> 268 | Z38: =SUM(Y9:Y37) -> 125 | AB38: =SUM(AA9:AA37) -> 405 | AD38: =SUM(AC9:AC37) -> 175 | AF38: =SUM(AE9:AE37) -> 175 | AH38: =SUM(AG9:AG37) -> 273 | AJ38: =SUM(AI9:AI37) -> 165 | AL38: =SUM(AK9:AK37) -> 155 | AN38: =SUM(AM9:AM37) -> 335 | AP38: =SUM(AO9:AO37) -> 303 | AR38: =SUM(AQ9:AQ37) -> 193 | AT38: =SUM(AS9:AS37) -> 255 | AV38: =SUM(AU9:AU37) -> 125 | AX38: =SUM(AW9:AW37) -> 0 | AZ38: =SUM(AY9:AY37) -> 0 | BB38: =SUM(BA9:BA37) -> 0 | BD38: =SUM(BC9:BC37) -> 0 | BF38: =SUM(BE9:BE37) -> 0 | BH38: =SUM(BG9:BG37) -> 0 | BJ38: =SUM(BI9:BI37) -> 0 | BL38: =SUM(BK9:BK37) -> 0
B39: SUBTOTAL | AD39: =SUM(F38:BJ38) -> 5555 | BT39: =SUM(BT9:BT37) -> 0
F40: =TotalPedido(E21) -> 0

Sheet ITINERARIO RIO
A1: BARRA | D1: BARRA
A3: GLORINHA | D3: ANA LUCIA
A4: Rua Zoila de Abreu Teixeira ( primeira rua depois do Cond Nova Ipanema ) edifício Kossen bloco 2 J cobertura 303 | D4: Rua FAla Amendoeira 348 ap 1901 Condominio Novo Leblon Ed Di Duccio
A5: Moqueca de Namorado | B5: 1 | D5: Pate de Figado 250g | E5: 1
D6: Casquinha de Caranguejo | E6: 1
A7: BARRA | D7: Caldo de Sururu | E7: 1
D8: Caldo de Piranha | E8: 1
A9: IVAN E JANE | D9: CrOquete de Vatapa | E9: 1
A10: Rua Zaco Paraná, 10 cob 301 Jd Oceanico
A11: Croquete de Joelho | B11: 1
A12: Lasagna Bologneses | B12: 1
A13: Carne Seca com Abobora | B13: 1
A15: BARRA | D15: BARRA
A17: ELISABETH | D17: MARA LUISA
A18: Rua Gilberto Amado 370 apto 101 | D18: Av. Jornalista Tim Lopes 255 bl 8 ap 312
A19: Caldo de Sururu | B19: 1 | D19: Ratatouille | E19: 1
A20: Caldo de Piranha | B20: 1 | D20: Rosbife Mostarda | E20: 1
A21: Moqueca de Namorado | B21: 1
A23: JD BOTANICO | D23: JD BOTANICO
A25: NOEMIA | D25: TIA CLARINHA
A26: Av. Lineu de Paula Machado, 1006/ 901 bl1 | D26: Rua General Garzon 100/604
A27: Carne Seca com Abobora | B27: 1 | D27: Casquinha de Caranguejo | E27: 1
A28: Galinhada | B28: 1 | D28: Carne Assada com Gnocchi | E28: 1
A29: Cocada | B29: 2
A31: CORTE CANTAGALO | D31: COPACABANA
A33: CLAUDIA GUERRA | D33: VALERIA
A34: AV HENRIQUE DODSWORTH 64/206 BL1 | D34: Rua Tonelero 130/503
A35: Bolinho de Bacalhau | B35: 1 | D35: Caldo de Sururu | E35: 1
A36: Carne Assada com Gnocchi | B36: 2 | D36: Caldo de Piranha | E36: 1
A37: Cocada | B37: 1
A39: LEBLON | D39: HUMAITÁ
A41: BETH E ROMULO | D41: MARGARIDA
A42: Av Borges de Medeiros, 137/401 | D42: Rua Casuarina 81 apto 202
A43: Croquete de Joelho | B43: 1 | D43: Croquete de Pato | E43: 1
A44: Galinhada | B44: 2 | D44: Carne Assada com Gnocchi | E44: 1

Sheet ITINERÁRIO PET
A1: BUSCA NO LOCAL | D1: CENTRO
A3: D ECILA | D3: RAQUEL
D4: Praça Rui Barbosa, 250/402
A5: Ratatouille | B5: 1 | D5: Moqueca de Namorado | E5: 1
A6: Pomodoro | B6: 1 | D6: *RECEBER NA PORTARIA 160,00
A7: Carne Assada com Gnocchi | B7: 1
A8: Galinhada | B8: 1
A9: RECEBER 305,00 EM $
A11: QUARTEIRÃO BRASILEIRO | D11: VALE DOS ESQUILOS
A13: ISABELA | D13: PATTY LINDA
A14: Rua Professor Stroeller 320 | D14: Rua das dracenas 8
A15: Frango Parmigiana | B15: 1 | D15: Moqueca de Namorado | E15: 1
A16: Lasagna Bolognese | B16: 1
A17: Doce de Abobora | B17: 1
A19: ALTO DA SERRA | D19: CENTRO
A21: VERA | D21: TIA RENNE
A22: Rua Lopes Trovão, 320 | D22: Rua da Imperatriz 65/602
A23: Pesto | B23: 1 | D23: Croquete de Cordeiro | E23: 1
A24: Moqueca de Namorado | B24: 1 | D24: Croquete de Pato | E24: 1
A25: Cocada | B25: 1
A27: ITAIPAVA | D27: PQ SÃO VICENTE
A29: JOSÉ CARLOS E LEILA | D29: GRAÇA
A30: Rua Comandante Marcolino de Souza 443/104 Bl 3 | D30: RUA PAULA BUARQUE 1100
A31: Casquinha de Caranguejo | B31: 1 | D31: Croquete de Vatapa | E31: 1
A32: Caldo de Sururu | B32: 1 | D32: Carne Assada com Gnocchi | E32: 1
A33: Caldo de Piranha | B33: 1
A34: Moqueca de Namorado | B34: 1
A36: ARARAS
A38: ALICE
A39: Estrada das Perobas 2000, Casa 18
A40: Casquinha de Caranguejo | B40: 1
A41: CrOquete de Vatapa | B41: 1

Sheet Etiquetas
A4: VALENÇA
A5: preencher
A6: ELISABETH ROCHA MIRANDA
A7: RUA GILBERTO AMADO 370 APTO 101 CEP 22620-062 JARDIM OCEÂNICO BARRA DA TIJUCA | B7: preencher
A8: POMODORO | B8: 5
A9: CALDO DE SURURU | B9: 1
A10: CALDO DE PIRANHA | B10: 1
A11: MOQUECA DE NAMORADO | B11: 1
A14: BAIRRO TESTE
A15: preencher
A16: NOEMIA
A17: RUA TESTE | B17: preencher
A18: RATATOUILLE | B18: 0
A19: BATATAS CORADAS | B19: 0
A20: PATE DE FIGADO 250G | B20: 0
A21: CARNE ASSADA COM GNOCCH | B21: 0
A22: CARNE SECA COM ABOBORA | B22: 120
A23: GALINHADA | B23: 100
A24: DOCE DE ABOBORA | B24: 0
A25: COCADA | B25: 76
B26: 0
A28: ANGRA DOS REIS
A29: preencher
A30: NOME TESTE
A31: AV. LINEU DE PAULA MACHADO, # 1006/ APTO 901/BLOCO 1 | B31: preencher
A32: GNOCCHI DE BATATA | B32: 6
A33: CARNE SECA COM ABOBORA | B33: 1
A34: GALINHADA | B34: 1
A35: COCADA | B35: 2
A38: APERIBÉ
A39: preencher
A40: TESTE
A41: TESTE | B41: preencher
A42: RATATOUILLE | B42: 0
A43: BATATAS CORADAS | B43: 0
A44: PATE DE FIGADO 250G | B44: 0
A45: BOLINHO DE BACALHAU | B45: 0
A46: CROQUETE DE JOELHO | B46: 0
A47: CROQUETE DE CORDEIRO | B47: 0
A48: CROQUETE DE PATO | B48: 0
A49: BERINJELA PARMIGIANA | B49: 0
A50: FRANGO PARMIGIANA | B50: 0
A51: LASAGNA BOLOGNESES | B51: 0
A52: GNOCCHI DE BATATA | B52: 0
A53: ROSBIFE MOSTARDA | B53: 0
A54: PESTO | B54: 0
A55: POMODORO | B55: 0
A56: RAGU CALABRESE | B56: 0
A57: FUNGHI | B57: 0
A58: CASQUINHA DE CARANGUEJO | B58: 90
A59: CALDO DE SURURU | B59: 0
A60: CALDO DE PIRANHA | B60: 0
A61: CROQUETE DE VATAPA | B61: 0
A62: MOQUECA DE NAMORADO | B62: 0
A63: CARNE ASSADA COM GNOCCH | B63: 110
A64: CARNE SECA COM ABOBORA | B64: 0
A65: GALINHADA | B65: 0
A66: DOCE DE ABOBORA | B66: 0
A67: COCADA | B67: 0
B68: 0
A70: ARARUAMA
A71: preencher
A72: TIA CLARINHA
A73: RUA GENERAL GARZON 100/604 | B73: preencher
A74: CASQUINHA DE CARANGUEJO | B74: 1
A75: CARNE ASSADA COM GNOCCH | B75: 1
A78: AREAL
A79: preencher
A80: EF
A81: FEFE | B81: preencher
A82: RATATOUILLE | B82: 50
A83: BATATAS CORADAS | B83: 0
A84: PATE DE FIGADO 250G | B84: 0
A85: BOLINHO DE BACALHAU | B85: 0
A86: CROQUETE DE JOELHO | B86: 0
A87: CROQUETE DE CORDEIRO | B87: 0
A88: CROQUETE DE PATO | B88: 0
A89: BERINJELA PARMIGIANA | B89: 0
A90: FRANGO PARMIGIANA | B90: 0
A91: LASAGNA BOLOGNESES | B91: 0
A92: GNOCCHI DE BATATA | B92: 0
A93: ROSBIFE MOSTARDA | B93: 0
A94: PESTO | B94: 0
A95: POMODORO | B95: 45
A96: RAGU CALABRESE | B96: 0
A97: FUNGHI | B97: 0
A98: CASQUINHA DE CARANGUEJO | B98: 0
A99: CALDO DE SURURU | B99: 0
A100: CALDO DE PIRANHA | B100: 0
A101: CROQUETE DE VATAPA | B101: 0
A102: MOQUECA DE NAMORADO | B102: 0
A103: CARNE ASSADA COM GNOCCH | B103: 110
A104: CARNE SECA COM ABOBORA | B104: 0
A105: GALINHADA | B105: 100
A106: DOCE DE ABOBORA | B106: 0
A107: COCADA | B107: 0
B108: 0
A110: ARMAÇÃO DOS BÚZIOS
A111: preencher
A112: NOME TESTE
A113: BUSCA NO LOCAL | B113: preencher
A114: RATATOUILLE | B114: 1
A115: POMODORO | B115: 1
A116: CARNE ASSADA COM GNOCCH | B116: 1
A117: GALINHADA | B117: 1
A120: ARRAIAL DO CABO
A121: preencher
A122: NOME TESTE 2
A123: ENDEREÇO TESTE | B123: preencher
A124: RATATOUILLE | B124: 0
A125: BATATAS CORADAS | B125: 0
A126: PATE DE FIGADO 250G | B126: 0
A127: BOLINHO DE BACALHAU | B127: 0
A128: CROQUETE DE JOELHO | B128: 0
A129: CROQUETE DE CORDEIRO | B129: 0
A130: CROQUETE DE PATO | B130: 0
A131: BERINJELA PARMIGIANA | B131: 0
A132: FRANGO PARMIGIANA | B132: 100
A133: LASAGNA BOLOGNESES | B133: 110
A134: GNOCCHI DE BATATA | B134: 0
A135: ROSBIFE MOSTARDA | B135: 0
A136: PESTO | B136: 0
A137: POMODORO | B137: 0
A138: RAGU CALABRESE | B138: 0
A139: FUNGHI | B139: 0
A140: CASQUINHA DE CARANGUEJO | B140: 0
A141: CALDO DE SURURU | B141: 0
A142: CALDO DE PIRANHA | B142: 0
A143: CROQUETE DE VATAPA | B143: 0
A144: MOQUECA DE NAMORADO | B144: 0
A145: CARNE ASSADA COM GNOCCH | B145: 0
A146: CARNE SECA COM ABOBORA | B146: 0
A147: GALINHADA | B147: 0
A148: DOCE DE ABOBORA | B148: 30
A149: COCADA | B149: 0
B150: 0
A152: BARRA DO PIRAÍ
A153: preencher
A154: ISABELA SA FREIRE
A155: RUA PROFESSOR STROELLER 320, QUARTEIRÃO BRASILEIRO | B155: preencher
A156: FRANGO PARMIGIANA | B156: 1
A157: LASAGNA BOLOGNESES | B157: 1
A158: DOCE DE ABOBORA | B158: 1
A161: BARRA MANSA
A162: preencher
A163: FULANO
A164: ENDEREÇO X | B164: preencher
A165: RATATOUILLE | B165: 50
A166: BATATAS CORADAS | B166: 0
A167: PATE DE FIGADO 250G | B167: 0
A168: BOLINHO DE BACALHAU | B168: 0
A169: CROQUETE DE JOELHO | B169: 0
A170: CROQUETE DE CORDEIRO | B170: 0
A171: CROQUETE DE PATO | B171: 0
A172: BERINJELA PARMIGIANA | B172: 0
A173: FRANGO PARMIGIANA | B173: 0
A174: LASAGNA BOLOGNESES | B174: 0
A175: GNOCCHI DE BATATA | B175: 0
A176: ROSBIFE MOSTARDA | B176: 140
A177: PESTO | B177: 0
A178: POMODORO | B178: 0
A179: RAGU CALABRESE | B179: 0
A180: FUNGHI | B180: 0
A181: CASQUINHA DE CARANGUEJO | B181: 0
A182: CALDO DE SURURU | B182: 0
A183: CALDO DE PIRANHA | B183: 0
A184: CROQUETE DE VATAPA | B184: 0
A185: MOQUECA DE NAMORADO | B185: 0
A186: CARNE ASSADA COM GNOCCH | B186: 0
A187: CARNE SECA COM ABOBORA | B187: 0
A188: GALINHADA | B188: 0
A189: DOCE DE ABOBORA | B189: 0
A190: COCADA | B190: 0
B191: 0
A193: BELFORD ROXO
A194: preencher
A195: MARA LUISA VANIA
A196: AV. JORNALISTA TIM LOPES 255 BLOCO 8 APTO 312 | B196: preencher
A197: RATATOUILLE | B197: 1
A198: ROSBIFE MOSTARDA | B198: 1
A201: BOM JARDIM
A202: preencher
A203: CITRANO
A204: ENDEREÇO Y | B204: preencher
A205: RATATOUILLE | B205: 0
A206: BATATAS CORADAS | B206: 0
A207: PATE DE FIGADO 250G | B207: 0
A208: BOLINHO DE BACALHAU | B208: 50
A209: CROQUETE DE JOELHO | B209: 0
A210: CROQUETE DE CORDEIRO | B210: 0
A211: CROQUETE DE PATO | B211: 0
A212: BERINJELA PARMIGIANA | B212: 0
A213: FRANGO PARMIGIANA | B213: 0
A214: LASAGNA BOLOGNESES | B214: 0
A215: GNOCCHI DE BATATA | B215: 0
A216: ROSBIFE MOSTARDA | B216: 0
A217: PESTO | B217: 0
A218: POMODORO | B218: 0
A219: RAGU CALABRESE | B219: 0
A220: FUNGHI | B220: 70
... 55 more rows

Sheet EtiquetaRascunho
